Cogmind - Beta 11 X7 @@@ ROGUE MODE // 2021.10.02 @ 12:18:15 Player: aperiodic Result: Destroyed by S-27 Virus with Autogun Performance ------------- Evolutions (3) 1500 Regions Visited (11) 2200 Robots Destroyed (66) 330 Value Destroyed (999) 999 Prototype IDs (44) 880 Alien Tech Used (0) 0 Bonus (1300) 1300 TOTAL SCORE: 7209 Bonus ------- Aligned with FarCom 300 Destroyed Z-Imprinter 1000 Cogmind --------- Core Integrity 0/700 Matter 300/300 Energy 92/100 System Corruption 0% Temperature Cool (0) Movement Hovering (65) Location -6/Proximity Caves Parts ------- > --- POWER (1) -------- Zionite Light DM Reactor > --- PROPULSION (4) --- Zionite Glidesys II Combat Antigrav System Combat Antigrav System Combat Antigrav System > --- UTILITY (6) ------ Medium Storage Unit Melee Analysis Suite Improved Actuator Array Advanced Transmission Jammer Advanced Reaction Control System > --- WEAPON (2) ------- Power Sword CR-A16's Pointy Stick > --- INVENTORY (10) --- Zionite Light DM Reactor Zionite Glidesys II Zionite Biocell (600) Zionite Biocell (600) Makeshift Hacking Suite Splice Drone Bay (6/6) Improved EM Pulse Cannon Improved EM Pulse Cannon Peak State ------------ > --- POWER ------------ Zionite Light DM Reactor > --- PROPULSION ------- Zionite Glidesys II Combat Antigrav System Combat Antigrav System Combat Antigrav System > --- UTILITY ---------- Experimental Heat Sink Medium Storage Unit Advanced Reaction Control System Advanced Phase Shifter Layered Light Armor Plating Hacking Drone Bay > --- WEAPON ----------- Zionite Laser-S CR-A16's Pointy Stick > --- INVENTORY -------- Zionite Light DM Reactor Zionite Glidesys II Zionite Glidesys II Zionite Biocell Zionite Biocell Advanced Transmission Jammer Makeshift Hacking Suite Splice Drone Bay Improved EM Pulse Cannon Improved EM Pulse Cannon [Rating: 95] Favorites ----------- Power Light Neutrino Core Engine Light Ion Engine Power Core Light Neutrino Core Reactor Zionite Light DM Reactor Propulsion Combat Antigrav System Treads Light Treads Wheel Wheel Hover Unit Combat Antigrav System Utility Medium Storage Unit Device Improved Shield Generator Storage Medium Storage Unit Processor Advanced Targeting Computer Hackware Makeshift Hacking Suite Protection Layered Light Armor Plating Weapon Light Assault Rifle Energy Gun Medium Laser Ballistic Gun Light Assault Rifle Launcher Proton Missile Launcher Special Weapon Mining Laser Impact Weapon Flail Slashing Weapon Greatsword Piercing Weapon CR-A16's Pointy Stick Build | -11 -10 -10 -10 -9 -8 -7 -7 -7 -7 -7 -6 ------- Run | Scr Mat Min Exi Min Mat Fac Low Low Zio Dee Pro Slots Evolved 6 | . . . . . 4 2 . . . . . Power . | . . . . . . . . . . . . Propulsion 2 | . . . . . 1 1 . . . . . Utility 4 | . . . . . 3 1 . . . . . Weapon . | . . . . . . . . . . . . Parts Attached 112 | 7 16 2 22 . 9 22 4 1 5 20 4 Power 14 | 1 4 . 1 . 1 3 . . 1 3 . Engine 6 | 1 3 . . . 1 1 . . . . . Core 5 | . 1 . 1 . . 2 . . 1 . . Reactor 3 | . . . . . . . . . . 3 . Propulsion 22 | 3 3 . 3 . 4 4 . . 1 3 1 Treads 3 | . 2 . 1 . . . . . . . . Leg . | . . . . . . . . . . . . Wheel 4 | 3 1 . . . . . . . . . . Hover 15 | . . . 2 . 4 4 . . 1 3 1 Flight . | . . . . . . . . . . . . Utility 45 | 1 3 2 8 . 4 7 4 1 3 10 2 Device 14 | . . 1 3 . . 2 1 . 1 5 1 Storage 6 | 1 1 . 2 . . 1 . . . 1 . Processor 4 | . . . . . . 1 1 . 1 . 1 Hackware 4 | . 1 . . . 2 1 . . . . . Protection 17 | . 1 1 3 . 2 2 2 1 1 4 . Artifact . | . . . . . . . . . . . . Weapon 31 | 2 6 . 10 . . 8 . . . 4 1 Energy Gun 2 | 1 . . . . . . . . . 1 . Energy Cannon . | . . . . . . . . . . . . Ballistic Gun 17 | 1 5 . 8 . . 3 . . . . . Ballistic Cannon . | . . . . . . . . . . . . Launcher 4 | . . . 1 . . 3 . . . . . Special Weapon 1 | . 1 . . . . . . . . . . Impact Weapon 1 | . . . . . . 1 . . . . . Slashing Weapon 4 | . . . 1 . . 1 . . . 1 1 Piercing Weapon 2 | . . . . . . . . . . 2 . Special Melee Weapon . | . . . . . . . . . . . . Unidentified Prototypes 11 | . 1 1 2 . . . . . . 7 . Parts Lost 32 | . 1 . 4 . 1 9 3 . . 13 1 Power 4 | . . . 1 . . 2 . . . 1 . Propulsion 8 | . 1 . 1 . 1 3 . . . 2 . Utility 15 | . . . 2 . . 2 3 . . 7 1 Weapon 5 | . . . . . . 2 . . . 3 . Highest Loss Streak 6 | . 1 . 4 . 1 4 2 . . 6 1 Average Slot Usage (%) 89 | . 98 100 86 100 98 80 86 83 84 89 90 Engine 1 | . 9 . . . 4 2 . . . . . Core 7 | . 4 14 11 14 4 3 7 7 7 2 . Treads 11 | . 14 28 26 . . . . . . . . Wheel 1 | . 13 . . . . . . . . . . Hover 14 | . . . 1 28 27 22 30 29 25 28 30 Device 4 | . . . . 14 9 1 6 7 10 15 25 Storage 10 | . 14 14 14 14 9 7 7 7 7 9 7 Processor 1 | . . . . . . 5 5 . 3 . 4 Hackware 5 | . 10 . . . 17 18 8 7 3 . . Protection 9 | . 2 13 8 . 9 4 9 15 16 15 . Energy Gun 1 | . 7 . . . . . . . . 1 . Ballistic Gun 12 | . 18 28 23 14 9 4 . . . . . Slashing Weapon 3 | . . . . 14 9 2 7 7 7 4 4 Naked Turns . | . . . . . . . . . . . . Heaviest Build 58 | 12 21 25 58 28 32 35 38 39 42 42 35 Greatest Support 64 | 26 40 40 40 28 40 48 48 48 64 64 64 Greatest Overweight (x) 1 | . 1 . 1 . . 1 . 1 1 1 . Average Overweight (x) . | . . . . . . . . . . . . Largest Inventory Capacity 20 | 8 10 10 20 10 10 10 10 10 10 10 10 Average Capacity 10 | 7 9 10 12 10 10 10 10 10 10 10 10 Most Carried 20 | 6 10 10 20 10 10 10 10 9 10 10 8 Average Carried 9 | 3 9 9 9 10 8 9 8 8 9 9 7 Final Capacity 10 | 8 10 10 10 10 10 10 10 10 10 10 10 Final Carried 10 | 6 10 10 10 10 9 10 8 7 10 9 8 Class Distribution -------------------- 49% | Mutant 14% | Hacker-Mutant 14% | Machinist-Mutant 12% | Scavenger-Mutant 8% | Machinist-Gladiator Dominant Class ---------------- Mutant | -10/Materials Mutant | -10/Mines Mutant | -10/Exiles Scavenger-Mutant | -9/Mines Scavenger-Mutant | -8/Materials Hacker-Mutant | -7/Factory Machinist-Mutant | -7/Lower Caves Machinist-Mutant | -7/Lower Caves Machinist-Mutant | -7/Zion Scavenger-Mutant | -7/Deep Caves Scavenger-Mutant | -6/Proximity Caves Resources | -11 -10 -10 -10 -9 -8 -7 -7 -7 -7 -7 -6 ----------- Run | Scr Mat Min Exi Min Mat Fac Low Low Zio Dee Pro Matter Collected 1982 | 318 200 40 392 58 40 530 39 10 65 245 45 Remotely . | . . . . . . . . . . . . Salvage Created 2185 | 104 292 46 388 147 40 820 . 49 . 278 21 Parts 198 | 10 28 7 56 9 1 54 . 3 . 29 1 Haulers Intercepted 4 | . 2 . . . . 2 . . . . . Recyclers Shooed 5 | . . . . . 2 3 . . . . . Parts Field Recycled . | . . . . . . . . . . . . Retrieved Matter . | . . . . . . . . . . . . Parts Self-Destructed 10 | . . . . . . . 7 3 . . . Prevented . | . . . . . . . . . . . . Kills | -11 -10 -10 -10 -9 -8 -7 -7 -7 -7 -7 -6 ------- Run | Scr Mat Min Exi Min Mat Fac Low Low Zio Dee Pro Combat Hostiles Destroyed 31 | . 4 3 3 1 . 12 . 2 . 5 1 Melee 13 | . . . . . . 5 . 2 . 5 1 Guns 14 | . 4 3 3 1 . 3 . . . . . AOE 4 | . . . . . . 4 . . . . . Classes Destroyed 16 | 2 6 . 3 . . 4 . . . 1 . Worker 7 | 2 . . . 1 . 4 . . . . . Builder 3 | . . . . . . 3 . . . . . Tunneler 4 | 3 . . . 1 . . . . . . . Hauler 4 | . 2 . . . . 2 . . . . . Recycler 5 | . 1 . . 1 . 3 . . . . . Mechanic 1 | . . . . . . 1 . . . . . Operator 2 | . 2 . . . . . . . . . . Turret 1 | . . . 1 . . . . . . . . Watcher 2 | . 1 . . . 1 . . . . . . Swarmer 18 | . 3 3 . . . 9 . 2 . . 1 Grunt 2 | . 1 . . 1 . . . . . . . Sentry 2 | . . . . . . 2 . . . . . Programmer 1 | . . . . . . 1 . . . . . Zionite 8 | . . . 8 . . . . . . . . Z-Technician 5 | . . . . . . . . . . 5 . Z-Light 2 | . . . . . . . . . . 2 . Assembled 4 | . . . 2 . . . . . . 2 . Best Kill Streak 5 | 4 4 2 5 3 1 4 . 2 . 5 1 Combat Bots Only 4 | . 3 2 2 1 . 4 . 2 . 2 1 Max Kills in Single Turn 4 | 1 1 1 1 1 1 4 . 1 . 1 1 Gunslinging . | . . . . . . . . . . . . Exploded 2 | . . . . . . 2 . . . . . Melee 1 | . . . . . . 1 . 1 . 1 1 Uniques/NPCs Destroyed 5 | . . . 4 . . . . . . 1 . 8R-AWN (-10/Exiles) EX-DEC (-10/Exiles) EX-HEX (-10/Exiles) EX-BIN (-10/Exiles) Z-Imprinter (-7/Deep Caves) Combat | -11 -10 -10 -10 -9 -8 -7 -7 -7 -7 -7 -6 -------- Run | Scr Mat Min Exi Min Mat Fac Low Low Zio Dee Pro Damage Taken 5419 | . 244 97 709 46 268 1338 256 107 . 2145 209 Core 939 | . 73 7 99 12 44 324 . 9 . 263 108 Absorbed by Shields 132 | . . . . . . . 74 40 . 18 . Core Remaining (%) 71 | 100 . . . 23 92 . . . . . . Volleys Fired 182 | 16 31 10 69 8 3 33 . . . 12 . Largest 2 | 2 2 2 2 1 1 2 . . . 1 . Hottest 100 | 70 100 40 50 30 30 58 . . . 60 . Shots Fired 316 | 32 57 20 136 8 3 48 . . . 12 . Gun 307 | 32 56 20 133 8 3 43 . . . 12 . Cannon . | . . . . . . . . . . . . Launcher 8 | . . . 3 . . 5 . . . . . Special 1 | . 1 . . . . . . . . . . Kinetic 256 | 16 33 20 133 8 3 43 . . . . . Thermal 52 | 16 24 . . . . . . . . 12 . Explosive 5 | . . . 3 . . 2 . . . . . Electromagnetic 3 | . . . . . . 3 . . . . . Robot Hit Streak 24 | 5 17 3 24 3 . 17 . . . . . Robot Miss Streak 4 | 2 3 3 3 1 . 4 . . . . . Penetration Max 1 | . . . . . . 1 . . . . . Secondary Targets . | . . . . . . . . . . . . Autonomous 64 | . . . 64 . . . . . . . . Shots Hit Robots 267 | 20 42 9 95 9 5 59 . 3 . 24 1 Core Hits 174 | 6 16 5 71 4 1 55 . 2 . 13 1 Critical Kills 4 | . . . . 1 . 3 . . . . . Critical Parts Destroyed 7 | . . . 2 3 . 2 . . . . . Critical Strikes 14 | 1 1 . 2 4 . 5 . 1 . . . Burn 2 | 1 1 . . . . . . . . . . Destroy 11 | . . . 2 4 . 5 . . . . . Sever 1 | . . . . . . . . 1 . . . Melee Attacks 128 | . . . . 4 15 38 14 6 . 50 1 Impact 4 | . . . . . . 4 . . . . . Slashing 104 | . . . . 4 15 34 14 6 . 30 1 Piercing 20 | . . . . . . . . . . 20 . Sneak Attacks 19 | . . . . 3 3 6 . . . 7 . Combat Hostiles . | . . . . . . . . . . . . Follow-up Attacks 1 | . . . . . . . . . . 1 . Damage Inflicted 7700 | 254 436 65 2042 457 436 2284 . 147 . 1538 41 Guns 3495 | 254 436 65 1920 94 . 726 . . . . . Cannons . | . . . . . . . . . . . . Explosions 371 | . . . 57 . . 314 . . . . . Melee 3769 | . . . . 363 436 1244 . 147 . 1538 41 Ramming 65 | . . . 65 . . . . . . . . Kinetic 3128 | 118 205 65 1920 94 . 726 . . . . . Thermal 367 | 136 231 . . . . . . . . . . Explosive 217 | . . . 57 . . 160 . . . . . Electromagnetic 154 | . . . . . . 154 . . . . . Impact . | . . . . . . . . . . . . Slashing 3003 | . . . . 363 436 1244 . 147 . 772 41 Piercing 766 | . . . . . . . . . . 766 . Highest Corruption 5 | . . . . 1 . 5 . . . . . Average Corruption 3 | . . . . 1 . 4 . . . . . Corruption Purged 5 | . . . . . . 5 . . . . . Effects 11 | . . . . 1 . 10 . . . . . Message Errors 3 | . . . . . . 3 . . . . . Matter Fused 2 | . . . . . . 2 . . . . . Energy Discharges 4 | . . . . 1 . 3 . . . . . Data Loss (minor) 1 | . . . . . . 1 . . . . . Misfires 1 | . . . . . . 1 . . . . . Overload Shots . | . . . . . . . . . . . . Overflow Damage 885 | . . . . . 239 442 . . . 204 . Projectiles . | . . . . . . . . . . . . Explosions . | . . . . . . . . . . . . Melee 885 | . . . . . 239 442 . . . 204 . Knockbacks . | . . . . . . . . . . . . Impact . | . . . . . . . . . . . . Kinetic . | . . . . . . . . . . . . Secondary . | . . . . . . . . . . . . Self-Inflicted Damage 38 | . . . . . . 38 . . . . . Shots 3 | . . . . . . 3 . . . . . Rammed 46 | . . . 46 . . . . . . . . Targets Rammed 46 | . . . 46 . . . . . . . . Kicked . | . . . . . . . . . . . . Crushed . | . . . . . . . . . . . . Highest Temperature 448 | 81 274 30 . 111 34 11 6 2 448 387 7 Average Temperature 91 | 30 89 14 . 55 13 3 5 2 104 145 4 Received Heat Transfer 1106 | . 114 . . 24 108 129 44 . . 615 72 Effects 18 | . 1 . . . . . . . 13 4 . Shutdowns 4 | . . . . . . . . . 3 1 . Energy Bleed 3 | . 1 . . . . . . . 1 1 . Interference 6 | . . . . . . . . . 5 1 . Matter Decay 2 | . . . . . . . . . 2 . . Short Circuit 1 | . . . . . . . . . 1 . . Damage (minor) 2 | . . . . . . . . . 1 1 . Siege Activations . | . . . . . . . . . . . . Robots Corrupted . | . . . . . . . . . . . . Combat Hostiles . | . . . . . . . . . . . . Parts Fried . | . . . . . . . . . . . . Impact Corruptions . | . . . . . . . . . . . . Robots Melted . | . . . . . . . . . . . . Combat Hostiles . | . . . . . . . . . . . . Parts Melted 2 | . 2 . . . . . . . . . . Heat Transferred 1221 | 481 740 . . . . . . . . . . Parts Sabotaged . | . . . . . . . . . . . . Parts Stolen 2 | . . . . . . . . 2 . . . Parts Stripped . | . . . . . . . . . . . . Power Chain Reactions . | . . . . . . . . . . . . Missiles Intercepted . | . . . . . . . . . . . . Alert | -11 -10 -10 -10 -9 -8 -7 -7 -7 -7 -7 -6 ------- Run | Scr Mat Min Exi Min Mat Fac Low Low Zio Dee Pro Peak Influence 716 | 25 181 100 . 55 278 716 . . . . . Initial 121 | . 16 9 . . 21 121 . . . . . Average 148 | 7 64 36 . 35 93 314 . . . . . Maximum Alert Level 3 | . . . . . 1 3 . . . . . Low Security (%) 65 | 100 100 100 . 100 80 8 . . . . . Level 1 29 | . . . . . 19 78 . . . . . Level 2 4 | . . . . . . 13 . . . . . Level 3 . | . . . . . . . . . . . . Level 4 . | . . . . . . . . . . . . Level 5 . | . . . . . . . . . . . . High Security . | . . . . . . . . . . . . Max Security . | . . . . . . . . . . . . Squads Dispatched 9 | . 2 . . 1 1 5 . . . . . Investigation 5 | . 1 . . 1 1 2 . . . . . Extermination 1 | . . . . . . 1 . . . . . Reinforcement 2 | . 1 . . . . 1 . . . . . Assault . | . . . . . . . . . . . . Garrison 1 | . . . . . . 1 . . . . . Intercept . | . . . . . . . . . . . . Construction Impeded . | . . . . . . . . . . . . Haulers Reinforced . | . . . . . . . . . . . . Active Scanning Responses . | . . . . . . . . . . . . Cargo Convoy Interrupts . | . . . . . . . . . . . . Stealth | -11 -10 -10 -10 -9 -8 -7 -7 -7 -7 -7 -6 --------- Run | Scr Mat Min Exi Min Mat Fac Low Low Zio Dee Pro Distress Signals 4 | . . . . . 1 3 . . . . . Communications Jammed . | . . . . . . . . . . . . Distress Signals . | . . . . . . . . . . . . Times Spotted 131 | . 13 4 17 2 18 35 3 9 . 19 11 Peak Tracking Total 9 | . 3 3 9 2 9 5 1 5 . 6 5 Tactical Retreats 35 | . 1 1 3 1 6 10 1 2 . 7 3 Traps | -11 -10 -10 -10 -9 -8 -7 -7 -7 -7 -7 -6 ------- Run | Scr Mat Min Exi Min Mat Fac Low Low Zio Dee Pro Traps Triggered 2 | . 1 . . . . 1 . . . . . Indirectly . | . . . . . . . . . . . . Trap Hack Attempts . | . . . . . . . . . . . . Triggered . | . . . . . . . . . . . . Disarmed . | . . . . . . . . . . . . Reprogrammed . | . . . . . . . . . . . . Reused . | . . . . . . . . . . . . Traps Extracted . | . . . . . . . . . . . . Installed . | . . . . . . . . . . . . Triggered . | . . . . . . . . . . . . Exploded 3 | . . . 3 . . . . . . . . Machines | -11 -10 -10 -10 -9 -8 -7 -7 -7 -7 -7 -6 ---------- Run | Scr Mat Min Exi Min Mat Fac Low Low Zio Dee Pro Machines Disabled 15 | . . . 12 . . 2 . . . 1 . Max in Single Turn 2 | . . . 2 . . 2 . . . 1 . Garrison Access 1 | . . . . . 1 . . . . . . Machines Sabotaged . | . . . . . . . . . . . . Garrisons Compromised . | . . . . . . . . . . . . Overloaded Fab Kills . | . . . . . . . . . . . . Fab Network Shutdowns 1 | . . . . . . 1 . . . . . Hacking | -11 -10 -10 -10 -9 -8 -7 -7 -7 -7 -7 -6 --------- Run | Scr Mat Min Exi Min Mat Fac Low Low Zio Dee Pro Machines Accessed 33 | . 6 1 2 1 8 12 . 1 1 . 1 Terminals 21 | . 6 . . 1 6 7 . . . . 1 Fabricators 3 | . . . . . . 3 . . . . . Repair Stations . | . . . . . . . . . . . . Recycling Units 1 | . . . . . . 1 . . . . . Scanalyzers 1 | . . . . . 1 . . . . . . Garrison Access 2 | . . . . . 1 1 . . . . . Total Hacks 110 | . 20 1 2 3 38 40 . 1 3 . 2 Successful 75 | . 14 1 2 2 28 22 . 1 3 . 2 Failed 34 | . 6 . . 1 9 18 . . . . . Catastrophic 2 | . . . . . . 2 . . . . . Database Lockouts 1 | . . . . . 1 . . . . . . Manual 64 | . 15 . 1 5 22 17 . . 4 . . Terminals 84 | . 20 . . 3 32 27 . . . . 2 Fabricators 10 | . . . . . . 10 . . . . . Repair Stations . | . . . . . . . . . . . . Recycling Units 1 | . . . . . . 1 . . . . . Scanalyzers 4 | . . . . . 4 . . . . . . Garrison Access 4 | . . . . . 2 2 . . . . . Terminal Hacks 40 | . 8 1 2 2 13 8 . 1 3 . 2 Record 3 | . . . 1 . . . . . . . 2 Part Schematic 3 | . . . . . . . . . 3 . . Robot Analysis 5 | . 2 . . 1 2 . . . . . . Prototype ID Bank 6 | . 3 . . 1 1 1 . . . . . Open Door 2 | . . 1 . . . . . 1 . . . Branch Access Points 2 | . . . . . 1 1 . . . . . Terminal Index 2 | . 1 . . . . 1 . . . . . Fabricator Index 1 | . . . . . . 1 . . . . . Scanalyzer Index 1 | . . . . . 1 . . . . . . Alert Level 1 | . . . . . . 1 . . . . . Unreport Threat 3 | . . . . . 1 2 . . . . . Locate Traps 5 | . 1 . . . 4 . . . . . . Hauler Manifests 3 | . 1 . . . 1 1 . . . . . Registered Prototypes 1 | . . . . . 1 . . . . . . Zone Layout 1 | . . . . . 1 . . . . . . EX-Prototype ID Bank 1 | . . . 1 . . . . . . . . Fabricator Hacks 7 | . . . . . . 7 . . . . . Load Schematic 4 | . . . . . . 4 . . . . . Build 3 | . . . . . . 3 . . . . . Repair Station Hacks . | . . . . . . . . . . . . Recycling Unit Hacks . | . . . . . . . . . . . . Scanalyzer 4 | . . . . . 4 . . . . . . Insert Component 2 | . . . . . 2 . . . . . . Analyze 2 | . . . . . 2 . . . . . . Garrison Access Hacks 1 | . . . . . 1 . . . . . . Seal Access 1 | . . . . . 1 . . . . . . Unauthorized Hacks 23 | . 6 . . . 10 7 . . . . . Terminals 21 | . 6 . . . 10 5 . . . . . Track 7 | . 1 . . . 4 2 . . . . . Assimilate 5 | . 3 . . . 1 1 . . . . . Botnet 5 | . 1 . . . 3 1 . . . . . Disrupt 2 | . . . . . 1 1 . . . . . Operators 2 | . 1 . . . 1 . . . . . . Fabricators 1 | . . . . . . 1 . . . . . Report 1 | . . . . . . 1 . . . . . Repair Stations . | . . . . . . . . . . . . Recycling Units 1 | . . . . . . 1 . . . . . Tunnel 1 | . . . . . . 1 . . . . . Scanalyzers . | . . . . . . . . . . . . Garrison Access . | . . . . . . . . . . . . Data Cores Recovered 1 | . 1 . . . . . . . . . . Used 1 | . 1 . . . . . . . . . . Hacking Detections 25 | . 6 . . 1 7 11 . . . . . Full Trace Events 3 | . . . . 1 1 1 . . . . . Feedback Events 2 | . . . . 1 . 1 . . . . . Corruption 2 | . . . . 1 . 1 . . . . . Feedback Blocked . | . . . . . . . . . . . . Robot Schematics Acquired . | . . . . . . . . . . . . Robots Built . | . . . . . . . . . . . . Matter . | . . . . . . . . . . . . Time . | . . . . . . . . . . . . Total Robot Build Rating . | . . . . . . . . . . . . Part Schematics Acquired 5 | . . . . . 2 . . . 3 . . Parts Built 5 | . . . . . . 5 . . . . . Matter 830 | . . . . . . 830 . . . . . Time 276 | . . . . . . 276 . . . . . Total Part Build Rating 38 | . . . . . . 38 . . . . . Parts Repaired . | . . . . . . . . . . . . Time . | . . . . . . . . . . . . Parts Recycled . | . . . . . . . . . . . . Recycled Matter . | . . . . . . . . . . . . Retrieved Matter . | . . . . . . . . . . . . Retrieved Components . | . . . . . . . . . . . . Parts Scanalyzed 2 | . . . . . 2 . . . . . . Part Schematics Acquired 2 | . . . . . 2 . . . . . . Parts Damaged . | . . . . . . . . . . . . Bothacking | -11 -10 -10 -10 -9 -8 -7 -7 -7 -7 -7 -6 ------------ Run | Scr Mat Min Exi Min Mat Fac Low Low Zio Dee Pro Used RIF Installer . | . . . . . . . . . . . . Robots Hacked . | . . . . . . . . . . . . Non-combat . | . . . . . . . . . . . . Combat . | . . . . . . . . . . . . Robot Hacks Applied . | . . . . . . . . . . . . Relay Couplers Released . | . . . . . . . . . . . . Robots Rewired . | . . . . . . . . . . . . Allies Hacked . | . . . . . . . . . . . . Hacks Repelled . | . . . . . . . . . . . . Allies | -11 -10 -10 -10 -9 -8 -7 -7 -7 -7 -7 -6 -------- Run | Scr Mat Min Exi Min Mat Fac Low Low Zio Dee Pro Total Allies 3 | . 1 . . . 1 1 . . . . . Largest Group 1 | . 1 1 1 1 1 1 . . . . . Highest-Rated Group 10 | . 10 10 9 9 10 10 . . . . . Highest-Rated Ally 10 | . 10 10 9 9 10 10 . . . . . Total Orders 3 | . . . 1 2 . . . . . . . STAY 2 | . . . 1 1 . . . . . . . FOLLOW 1 | . . . . 1 . . . . . . . Ally Attacks 6 | . . . . . . . . 6 . . . Total Damage 201 | . . . . . . . . 201 . . . Kills . | . . . . . . . . . . . . Allies Corrupted . | . . . . . . . . . . . . Allies Melted 1 | . . . . . . . 1 . . . . Turrets Deployed 1 | . . . . . . . . 1 . . . Intel | -11 -10 -10 -10 -9 -8 -7 -7 -7 -7 -7 -6 ------- Run | Scr Mat Min Exi Min Mat Fac Low Low Zio Dee Pro Robot Analysis Total 5 | . 2 . . 1 2 . . . . . . Derelict Logs Recovered 7 | . . 3 . 1 . . . 2 1 . . Drone Launches . | . . . . . . . . . . . . Drone Recoveries . | . . . . . . . . . . . . Exploration | -11 -10 -10 -10 -9 -8 -7 -7 -7 -7 -7 -6 ------------- Run | Scr Mat Min Exi Min Mat Fac Low Low Zio Dee Pro Turns Passed 9542 | 114 996 854 2568 143 360 1381 594 276 1015 1044 197 Spaces Moved 7903 | 55 669 515 1299 173 491 1324 760 352 1254 783 228 Core 2 | 2 . . . . . . . . . . . Treads 1946 | . 254 515 1177 . . . . . . . . Legs . | . . . . . . . . . . . . Wheels 468 | 53 415 . . . . . . . . . . Hover 5487 | . . . 122 173 491 1324 760 352 1254 783 228 Flight . | . . . . . . . . . . . . Fastest Speed 50 | 50 80 160 71 71 55 50 72 72 68 58 63 Average Speed 98 | 92 110 160 171 71 59 74 72 72 73 90 64 Slowest Speed 260 | 100 160 160 260 71 65 150 72 146 146 146 65 Overloaded Moves . | . . . . . . . . . . . . Propulsion Burnouts . | . . . . . . . . . . . . Robots Hopped . | . . . . . . . . . . . . Cave-ins Triggered . | . . . . . . . . . . . . Exploration Rate (%) 58 | 4 85 98 92 26 51 30 80 56 85 73 23 Regions Visited 11 Branch Regions 8 Pre-discovered Areas 5 | . . . 1 . . 1 . . 3 . . Known Exits Taken 6 | . . 1 1 . 1 1 . 1 1 . . Unknown Exits Taken 5 | 1 1 . . 1 . . 1 . . 1 . Scrap Searched 18 | . . 3 . 1 . . 4 4 4 . 2 Spaces Dug 36 | . 1 . 3 . 7 6 14 . . 5 . Terrain Destroyed 99 | . 1 . 45 6 8 15 14 . . 10 . Melee 26 | . . . . . 7 5 14 . . . . Projectile 52 | . 1 . 33 6 1 1 . . . 10 . AOE 18 | . . . 9 . . 9 . . . . . Terrain Rammed . | . . . . . . . . . . . . Walls Destroyed . | . . . . . . . . . . . . Machines Disabled . | . . . . . . . . . . . . Actions | -11 -10 -10 -10 -9 -8 -7 -7 -7 -7 -7 -6 --------- Run | Scr Mat Min Exi Min Mat Fac Low Low Zio Dee Pro Total 9167 | 82 872 529 1554 184 538 1626 778 361 1345 1021 277 Wait 670 | . 134 . 71 . 15 191 . 1 71 145 42 Move 7892 | 54 668 514 1298 172 490 1323 759 351 1253 782 228 Hop . | . . . . . . . . . . . . Pick Up 69 | 5 12 1 19 . 5 10 . 1 10 5 1 Fast Attach 41 | 6 7 1 2 . . 9 1 1 1 10 3 Attach 43 | . 1 . 18 . 5 7 2 . 4 5 1 Detach 12 | . . . 11 . . 1 . . . . . Swap 28 | 1 8 1 2 . 4 6 1 . . 5 . Drop 57 | . 11 2 18 . 1 8 1 1 6 8 1 Fire 182 | 16 31 10 69 8 3 33 . . . 12 . Melee 127 | . . . . 4 15 38 14 6 . 49 1 Ram . | . . . . . . . . . . . . Kick . | . . . . . . . . . . . . Crush 46 | . . . 46 . . . . . . . . Escape Stasis . | . . . . . . . . . . . . Rewire . | . . . . . . . . . . . . Trap . | . . . . . . . . . . . . Miscellaneous . | . . . . . . . . . . . . Route ------- -11/Scrapyard -10/Materials (discovered 2 exits: [*Mat] / *Min) -10/Mines (discovered 3 exits: [*Mat x2] / *Exi) -10/Exiles (discovered 2 exits: *Min x2) -9/Mines -8/Materials (discovered 2 exits: *Fac x2) -7/Factory (discovered 3 exits: [*Fac] / *Low x2) -7/Lower Caves -7/Lower Caves (discovered 2 exits: [*Fac] / *Zio) -7/Zion (discovered 2 exits: *Dee / [*Pro]) -7/Deep Caves -6/Proximity Caves History --------- Turn | Location | Event 12 | -11/Scrapyard | Discovered new exit (range 16) 115 | -11/Scrapyard | Entered Materials 202 | -10/Materials | Met 8R-AWN 250 | -10/Materials | Discovered new exit (range 9) 259 | -10/Materials | Found Prototype Ballistic Gun 259 | -10/Materials | Identified 8R-AWN's Boregun 308 | -10/Materials | Build established: Mutant 638 | -10/Materials | Discovered new exit (range 15) 1111 | -10/Materials | Entered Mines 1111 | -10/Mines | Accompanied by 1 ally 1113 | -10/Mines | Followed 8R-AWN into the Mines 1136 | -10/Mines | Found the Drone Emporium 1144 | -10/Mines | Found Prototype Device 1144 | -10/Mines | Identified Splice Drone Bay 1272 | -10/Mines | Discovered new exit (range 6) 1376 | -10/Mines | Discovered new exit (range 5) 1536 | -10/Mines | Identified exit to Exiles 1830 | -10/Mines | Learned Materials terminal intel 1965 | -10/Mines | Entered Exiles 1965 | -10/Exiles | Accompanied by 1 ally 1966 | -10/Exiles | Identified exit to Mines 2004 | -10/Exiles | Welcomed by 8R-AWN 2033 | -10/Exiles | Met EX-HEX 2082 | -10/Exiles | Met EX-BIN 2156 | -10/Exiles | Met EX-DEC 2186 | -10/Exiles | Learned location of Zion (-7) 2400 | -10/Exiles | Aligned with FarCom system 2402 | -10/Exiles | Given EX-Vault access code 2462 | -10/Exiles | Opened EX-Vault 2478 | -10/Exiles | Found Army-in-a-Box 2486 | -10/Exiles | Found Deploy-a-Sentry 2490 | -10/Exiles | Found Deploy-a-Sentry 2496 | -10/Exiles | Found Deploy-a-Sentry 2511 | -10/Exiles | Found AWS/Gauss 2564 | -10/Exiles | Warned to stay clear of 0b10 Research branches 3050 | -10/Exiles | Learned about 8R-AWN's background 3290 | -10/Exiles | Attacked by the Exiles 3405 | -10/Exiles | Core integrity fell below 50% 3434 | -10/Exiles | Destroyed 8R-AWN 3453 | -10/Exiles | Lost 4 parts (1p1n2u) 3794 | -10/Exiles | Destroyed EX-DEC 3850 | -10/Exiles | Destroyed EX-HEX 3909 | -10/Exiles | Destroyed EX-BIN 4533 | -10/Exiles | Left Exiles lab with Deploy-a-Sentry 4533 | -10/Exiles | Entered Mines 4533 | -9/Mines | Accompanied by 1 ally 4561 | -9/Mines | Discovered new exit (range 14) 4628 | -9/Mines | Learned location of 1 exit from Materials 4629 | -9/Mines | Assembled infested the area 4676 | -9/Mines | Entered Materials 4676 | -8/Materials | Accompanied by 1 ally 4676 | -8/Materials | Evolved 4 slots: Propulsion x1, Utility x3 4677 | -8/Materials | Identified exit to Factory 4678 | -8/Materials | Loaded intel: 12 terminal locations 4773 | -8/Materials | Build established: Scavenger-Mutant 4778 | -8/Materials | Central database locked down 5035 | -8/Materials | Discovered exit to Factory (range 4) 5036 | -8/Materials | Entered Factory 5036 | -7/Factory | Evolved 2 slots: Propulsion x1, Utility x1 5158 | -7/Factory | Lost 4 parts (1p2n1u) 5266 | -7/Factory | Garrison activated, responded to threat 5426 | -7/Factory | Build established: Hacker-Mutant 5470 | -7/Factory | Discovered new exit (range 4) 5631 | -7/Factory | Fabricated Cmb. Antigrav System? 5919 | -7/Factory | Fabricated Cmb. Antigrav System? 6121 | -7/Factory | Fabricated Lgt. Neutrino Core? 6232 | -7/Factory | Local fabrication network quarantined 6241 | -7/Factory | Identified exit to Lower Caves 6417 | -7/Factory | Entered Lower Caves 6543 | -7/Lower Caves | Spotted B-75 Beast 6903 | -7/Lower Caves | Encountered a Warlord checkpoint 6929 | -7/Lower Caves | Discovered new exit (range 7) 6994 | -7/Lower Caves | Attracted the attention of an 0b10 checkpoint 7011 | -7/Lower Caves | Entered another Lower Caves area 7012 | -7/Lower Caves | Discovered new exit (range 9) 7091 | -7/Lower Caves | Learned Factory terminal intel 7210 | -7/Lower Caves | Build established: Machinist-Mutant 7247 | -7/Lower Caves | Identified exit to Zion 7274 | -7/Lower Caves | Spotted 2V-NA0(f) 7274 | -7/Lower Caves | Spotted XO-80K(f) 7275 | -7/Lower Caves | Spotted S5-5KG(f) 7275 | -7/Lower Caves | Spotted QM-FYQ(f) 7275 | -7/Lower Caves | Spotted 6M-I3Z(f) 7276 | -7/Lower Caves | Encountered a Master Thief 7276 | -7/Lower Caves | Encountered a Master Thief 7276 | -7/Lower Caves | Encountered a Master Thief 7276 | -7/Lower Caves | Encountered a Master Thief 7276 | -7/Lower Caves | Encountered a Master Thief 7276 | -7/Lower Caves | DAS Turret deployed 7279 | -7/Lower Caves | Cmb. Antigrav System stolen by Master Thief 7280 | -7/Lower Caves | Proton Missile Launcher stolen by Master Thief 7287 | -7/Lower Caves | Entered Zion 7328 | -7/Zion | Given the Hacking Drone Bay 7329 | -7/Zion | Found Prototype Device 7351 | -7/Zion | Learned location of Warlord (-5) 7364 | -7/Zion | Discovered new exit (range 15) 7405 | -7/Zion | Acquired unknown access codes intercepted by a Zionite 7589 | -7/Zion | Identified exit to Deep Caves 7874 | -7/Zion | Found Unknown Piercing Weapon 7894 | -7/Zion | Build established: Machinist-Gladiator 8022 | -7/Zion | Opened final containment barrier to the Deep Caves 8293 | -7/Zion | Saw the warning signs outside the Deep Caves entrance 8302 | -7/Zion | Entered Deep Caves 8356 | -7/Deep Caves | Build established: Machinist-Mutant 8634 | -7/Deep Caves | Z-Facility disabled 8637 | -7/Deep Caves | Attacked by Z-Imprinter 8656 | -7/Deep Caves | Destroyed Z-Imprinter 8673 | -7/Deep Caves | Core integrity fell below 50% 8723 | -7/Deep Caves | Identified CR-A16's Pointy Stick 8759 | -7/Deep Caves | Lost 6 parts (1p1n2u2w) 8813 | -7/Deep Caves | Found Prototype Protection 8813 | -7/Deep Caves | Identified Zio. Weapon Casing 9066 | -7/Deep Caves | Identified Hacking Drone Bay 9108 | -7/Deep Caves | Build established: Scavenger-Mutant 9233 | -7/Deep Caves | Lost 3 parts (1n1u1w) 9323 | -7/Deep Caves | Core integrity fell below 20% 9342 | -7/Deep Caves | Discovered new exit (range 6) 9346 | -7/Deep Caves | Entered Proximity Caves 9543 | -6/Proximity Caves | Destroyed by S-27 Virus with Autogun Last Messages --------------- 09401_ Found Power Sword. 09401_ Found 24 Matter. 09403_ Acquired Power Sword. 09406_ Acquired Melee Analysis Suite. 09408_ Acquired 20 matter. 09409_ Acquired Imp. Actuator Array. 09411_ Acquired 4 matter. 09411_ Acquired 6 matter. 09413_ Dropped Zio. Biocell. 09414_ Extracted 78 energy. 09414_ Acquired Zio. Biocell. 09440_ Connecting with Outpost Terminal... 09440_ Current location identified: Proximity Caves >>Query(Status Report 140P) EXTENSIVE FIRE DAMAGE TO EXTERIOR NETWORK. >>Query(Status Report %%%%) %%%%%%% %%% %%%%% %%%% %%% %%%%%%%%% %%% %% %%%%. 09484_ Critical hit (Burn: +37). 09485_ Exp. Heat Sink destroyed. 09543_ S-27 Virus destroyed. Map ----- +----------------------------------------------------+ | #?????????????????????????????????????????? | | #?????????????????????????????????????????? | | ## #?####????????????????????????????????????? | | "# * ## #????????????????????????????????????? | | " #????????????????????????????????????? | | " / #????????????????????????????????????? | | # ##????????????????????????????????????? | | #### ####?????????????????????????????????????? | | " "# ##????????????????????????????????????????? | | ""# #?????????????????????????????????????????? | | T "# #???????? ???????????????????????????????? | | ""# #???????? ##?????????????????????????????? | | ##### #???????? ###???????????????????????????? | | #???????? ##??????????????????????????? | | #?#####?? #??????????????????????????? | | ########## ### #???????####????????????????? | | ????????# #?####?## ????????????????? | | ####????# ### ## #?????????????????? | | ####### #?# ???????????????????? | | %! ## #?# ?????????????????????? | | ### #??????????????????????? | | ### ##?????????????????????? | | %### ### ##????????????????????? | | #### ### ##???????????????????? | | ######## ## ###s ##??????????????????? | | ##??# #?#@ ##?????????????????? | | #??## #?#s #?????????????????? | | #???# ##?????????????????? | | #####??# #####??????????????????? | | ##????# #####??????????????????????? | | #????# ## #??????????????????????????? | | #????## ### #?????????????????????????? | | #?########??# #????????????????????????? | | ### #???# #???????????????????????? | | ## #???? #??????????????????????? | | ##???# #??????????????????????? | | #?????# #??????????????????????? | | ### ##?????## ##??????????????????????? | | ??#####???????#### ##???????????????????????? | | ??????????????????### #??????????????????????????? | | ?????????????????????????????????????????????????? | | ?????????????????????????????????????????????????? | | ?????????????????????????????????????????????????? | | ?????????????????????????????????????????????????? | | ?????????????????????????????????????????????????? | | ?????????????????????????????????????????????????? | | ?????????????????????????????????????????????????? | | ?????????????????????????????????????????????????? | | ?????????????????????????????????????????????????? | | ?????????????????????????????????????????????????? | +----------------------------------------------------+ Best States ------------- Heat Dissipation 60 Energy Generation 27 Energy Capacity 700 Matter Stores 300 Matter Capacity 300 Sight Range 16 Terrain Scan Density 10 Jamming Range 16 Armor Coverage 575 Weapon Shielding 100 Weapon Cycling 25 Melee Speed Boost 20 Phase Shifting 15 Evasion (%) 82 Targeting Accuracy 8 Melee Accuracy 6 Recoil Reduction 2 Offensive Hacking 22 Defensive Hacking 10 Item Schematics ----------------- Cmb. Antigrav System | -8/Materials | Scanalyzed Lgt. Neutrino Core | -8/Materials | Scanalyzed Beamcaster | -7/Zion | Free Battle Rifle | -7/Zion | Free Barrage Gun | -7/Zion | Free Robot Schematics ------------------ None Fabricated ------------ Cmb. Antigrav System | x2 | -7/Factory Cmb. Antigrav System | x2 | -7/Factory Lgt. Neutrino Core | x1 | -7/Factory Alien Tech Used ----------------- None Achievements -------------- None Challenges ------------ None Game ------ Seed HeatLatentReconfigurator Manual? 0 Play Time 02:05:13 Cumulative 428.7 hours Start 2021.09.26 @ 18:14:37 End 2021.10.02 @ 12:18:15 Sessions 5 Manual Loads 0 Difficulty Rogue Special Mode None Game No. 143 Rogue 139 Adventurer 4 Explorer 0 Win Type - Total 10 Types 5/1/3/0/0/0/0/1/0 Lore% 81 Gallery% 80 Achievement% 68 Wizard Run 0 Options --------- ASCII 1 Keyboard 0 Movement Arrows Keybinds 0 Fullscreen 1 Font 18/Smallcaps Map View 76x50 Tactical HUD 1 Map Filters NONE Filters NONE Steam 1 RUN: 4677299f-a55e-4506-9a9d-91e441698c57